Cogmind - Beta 14 --- EXPLORER MODE // 2024.08.07 @ 21:51:28 Player: Jinx Result: Destroyed by Y-54 Guardian with Gatling Laser Performance ------------- Evolutions (3) 1500 Regions Visited (9) 1800 Robots Destroyed (65) 325 Value Destroyed (2421) 2421 Prototype IDs (3) 60 Alien Tech Used (0) 0 Bonus (0) 0 TOTAL SCORE: 6106 Bonus ------- None Cogmind --------- Core Integrity 0/700 Matter 121/300 Energy 458/465 System Corruption 10% Temperature Cool (8) Movement Walking (220) Ox1 Location -7/Factory Parts ------- > --- POWER (2) -------- Deuterium Engine Improved Deuterium Engine > --- PROPULSION (3) --- Improved Carbon-fiber Leg Light Armored Exoskeleton > --- UTILITY (5) ------ Improved Heat Sink Improved Cooling System Large Storage Unit Advanced Targeting Computer Matter Filter > --- WEAPON (4) ------- Gatling Laser Heavy Ion Cannon Advanced Assault Cannon Rocket Launcher > --- INVENTORY (15) --- Deuterium Engine Micro Nuclear Core Carbon-fiber Leg Transmission Jammer Heavy Laser Heavy Laser Heavy Laser Particle Cannon Assault Cannon Axe Axe Axe Peak State ------------ > --- POWER ------------ Deuterium Engine Deuterium Engine > --- PROPULSION ------- Improved Carbon-fiber Leg Improved Carbon-fiber Leg Improved Carbon-fiber Leg > --- UTILITY ---------- Improved Heat Sink Coolant Injector Machine Analyzer Energy Filter Weapon Cycler > --- WEAPON ----------- Lightning Gun Gauss Rifle Gauss Rifle Advanced Assault Cannon > --- INVENTORY -------- Deuterium Engine Aluminum Leg Improved Carbon-fiber Leg Advanced Assault Cannon Axe [Rating: 53] Favorites ----------- Power Ion Engine Engine Ion Engine Power Core Light Nuclear Core Propulsion Aluminum Leg Treads Medium Treads Leg Aluminum Leg Utility Improved Heat Sink Device Improved Heat Sink Storage Medium Storage Unit Processor Machine Analyzer Protection Medium Reactive Plating Weapon Assault Rifle Energy Gun Lightning Gun Energy Cannon Heavy Ion Cannon Ballistic Gun Assault Rifle Ballistic Cannon Flak Cannon Launcher Rocket Launcher Special Weapon Remote Datajack Slashing Weapon Axe Build | -11 -10 -9 -9 -9 -8 -8 -7 -7 -7 ------- Run | Yrd Mat Mat Min Exi Min Mat Fac Was Fac Slots Evolved 7 | . 1 2 . . . 2 2 . . Power 1 | . . 1 . . . . . . . Propulsion 1 | . . . . . . . 1 . . Utility 3 | . . 1 . . . 1 1 . . Weapon 2 | . 1 . . . . 1 . . . Parts Attached 98 | 7 3 4 . . 1 8 52 4 19 Power 17 | 1 2 1 . . . . 10 . 3 Engine 10 | 1 2 1 . . . . 3 . 3 Core 7 | . . . . . . . 7 . . Reactor . | . . . . . . . . . . Propulsion 22 | 2 . . . . 1 2 14 1 2 Treads 6 | . . . . . . 2 4 . . Leg 16 | 2 . . . . 1 . 10 1 2 Wheel . | . . . . . . . . . . Hover . | . . . . . . . . . . Flight . | . . . . . . . . . . Utility 25 | 2 . 1 . . . 2 11 1 8 Device 16 | 1 . 1 . . . 1 8 . 5 Storage 4 | 1 . . . . . 1 1 . 1 Processor 2 | . . . . . . . 1 . 1 Hackware . | . . . . . . . . . . Protection 3 | . . . . . . . 1 1 1 Artifact . | . . . . . . . . . . Weapon 34 | 2 1 2 . . . 4 17 2 6 Energy Gun 9 | 1 . . . . . 1 5 . 2 Energy Cannon 1 | . . . . . . . . . 1 Ballistic Gun 10 | 1 1 1 . . . . 7 . . Ballistic Cannon 9 | . . 1 . . . 3 3 . 2 Launcher 2 | . . . . . . . . 1 1 Special Weapon 1 | . . . . . . . 1 . . Impact Weapon . | . . . . . . . . . . Slashing Weapon 2 | . . . . . . . 1 1 . Piercing Weapon . | . . . . . . . . . . Special Melee Weapon . | . . . . . . . . . . Unidentified Prototypes 3 | . 1 . . . . 1 . 1 . Parts Lost 27 | . . . . . . 2 18 7 . Power 7 | . . . . . . 1 4 2 . Propulsion 5 | . . . . . . . 3 2 . Utility 6 | . . . . . . 1 4 1 . Weapon 9 | . . . . . . . 7 2 . Highest Loss Streak 10 | . . . . . . 2 10 6 . To Critical Strikes . | . . . . . . . . . . Average Slot Usage (%) 89 | . 99 95 100 100 100 92 86 22 89 Engine 12 | . 12 20 20 20 20 12 4 3 13 Core 2 | . . . . . . . 7 . . Treads 3 | . . . . . . 12 7 . . Leg 13 | . 25 20 20 20 20 3 11 4 13 Device 19 | . 12 15 20 20 20 19 19 4 22 Storage 6 | . 12 10 10 10 10 9 3 1 4 Processor 2 | . . . . . . . 3 1 3 Protection 1 | . . . . . . . 2 . 2 Energy Gun 5 | . 12 4 . . . 7 7 1 6 Energy Cannon 1 | . . . . . . . . . 6 Ballistic Gun 8 | . 24 20 20 20 20 1 8 2 . Ballistic Cannon 8 | . . 5 10 10 10 24 5 1 6 Launcher 1 | . . . . . . . . . 6 Peak Build Rating 53 | 7 10 14 14 14 15 32 53 50 53 Average Rating 31 | 4 7 11 14 14 14 29 39 12 49 On Entrance 16 | . 7 8 14 14 14 15 30 50 8 Naked Turns 140 | . . . . . . . . 140 . Heaviest Build 81 | 21 23 32 32 32 32 43 61 61 81 Greatest Support 77 | 20 20 29 29 29 29 65 77 54 48 Greatest Overweight (x) 11 | 1 1 1 1 1 1 11 1 1 2 Average Overweight (x) . | . 1 . 1 1 1 2 . . . Largest Inventory Capacity 15 | 10 10 10 10 10 10 10 15 15 15 Average Capacity 9 | 9 10 10 10 10 10 10 7 7 11 Most Carried 14 | 5 3 4 4 4 7 9 7 5 14 Average Carried 4 | 1 1 2 4 4 5 5 3 4 6 Final Capacity 15 | 10 10 10 10 10 10 10 15 5 15 Final Carried 12 | 1 2 4 4 4 6 6 5 5 12 Class Distribution -------------------- 54% | Hacker-Gunner 19% | Hacker-Tank 9% | Hacker-Mutant 7% | Hacker-Skirmisher 3% | Scavenger-Mutant Dominant Class ---------------- Hacker-Gunner | -10/Materials Hacker-Gunner | -9/Materials Hacker-Gunner | -9/Mines Hacker-Gunner | -9/Exiles Hacker-Gunner | -8/Mines Hacker-Skirmisher | -8/Materials Hacker-Gunner | -7/Factory Hacker-Mutant | -7/Waste Hacker-Gunner | -7/Factory Resources | -11 -10 -9 -9 -9 -8 -8 -7 -7 -7 ----------- Run | Yrd Mat Mat Min Exi Min Mat Fac Was Fac Matter Collected 2341 | 228 104 62 . . 207 262 1202 103 173 Remotely . | . . . . . . . . . . Salvage Created 2109 | . 68 30 . . 177 275 1426 . 133 Parts 107 | . 7 2 . . 6 13 71 . 8 Haulers Intercepted . | . . . . . . . . . . Recyclers Shooed 2 | . . . . . . . 2 . . Parts Field Recycled 2 | . . . . . . . . . 2 Retrieved Matter 108 | . . . . . . . . . 108 Parts Self-Destructed . | . . . . . . . . . . Prevented . | . . . . . . . . . . Kills | -11 -10 -9 -9 -9 -8 -8 -7 -7 -7 ------- Run | Yrd Mat Mat Min Exi Min Mat Fac Was Fac Combat Hostiles Destroyed 54 | . 4 1 . . 4 11 30 . 4 Melee 3 | . . . . . . . 3 . . Guns 29 | . 4 . . . 2 2 20 . 1 Cannons 20 | . . 1 . . 2 8 7 . 2 AOE 2 | . . . . . . 1 . . 1 Classes Destroyed 11 | . 2 1 . . 1 3 4 . . Worker 3 | . . . . . . . 3 . . Tunneler 2 | . . . . . . 1 . . 1 Recycler 1 | . . . . . . . 1 . . Watcher 5 | . 1 . . . . . 4 . . Swarmer 16 | . 4 . . . . 2 8 . 2 Grunt 23 | . . . . . 4 6 13 . . Brawler 1 | . . . . . . 1 . . . Duelist 2 | . . . . . . 1 1 . . Sentry 5 | . . 1 . . . 1 3 . . Hunter 2 | . . . . . . . 1 . 1 Programmer 5 | . . . . . . . 4 . 1 Best Kill Streak 10 | . 2 1 . . 2 10 7 . 2 Combat Bots Only 9 | . 2 1 . . 2 9 6 . 2 Max Kills in Single Turn 2 | . 2 1 . . 1 2 2 . 2 Gunslinging 1 | . 1 . . . . . . . . Exploded 1 | . . . . . . 1 . . 1 Melee 1 | . . . . . . . 1 . . Uniques/NPCs Destroyed . | . . . . . . . . . . Combat | -11 -10 -9 -9 -9 -8 -8 -7 -7 -7 -------- Run | Yrd Mat Mat Min Exi Min Mat Fac Was Fac Hostile Shots Fired 612 | . 24 6 6 . 13 55 475 13 20 Missed 168 | . 8 1 . . 3 7 140 2 7 Damage Taken 3939 | . 70 57 38 . 115 704 2549 307 99 Core 1004 | . 9 9 7 . 8 269 464 218 20 Absorbed by Shields 38 | . . . . . . . . . 38 Ignored by Resistances 2553 | . 52 35 25 . 67 318 1801 172 83 Core Remaining (%) 85 | 100 96 . . . 94 51 . . . Volleys Fired 136 | . 7 6 . . 10 16 85 8 4 Largest 4 | . 3 3 . . 3 4 4 4 4 Hottest 226 | . 90 90 . . 84 193 199 159 226 Shots Fired 360 | . 20 18 . . 32 46 205 21 18 Gun 256 | . 20 14 . . 21 13 170 13 5 Cannon 96 | . . 4 . . 11 33 33 6 9 Launcher 6 | . . . . . . . . 2 4 Special 2 | . . . . . . . 2 . . Kinetic 236 | . 14 16 . . 32 33 121 16 4 Thermal 81 | . 6 2 . . . 13 54 . 6 Explosive 6 | . . . . . . . . 2 4 Electromagnetic 35 | . . . . . . . 28 3 4 Robot Hit Streak 31 | . 8 15 . . 19 15 31 22 6 Robot Miss Streak 5 | . 3 2 . . 2 4 5 . 1 Penetration Max 1 | . . . . . . . 1 . . Secondary Targets 7 | . 2 . . . . . 5 . . Max Gunslinging Chain 1 | . 1 . . . . . 1 . . Shots Hit Robots 266 | . 11 13 . . 24 33 156 21 8 Core Hits 182 | . 6 6 . . 20 34 105 4 7 Critical Kills . | . . . . . . . . . . Critical Parts Destroyed 1 | . . . . . . . 1 . . Critical Strikes 6 | . . . . . . . 6 . . Burn 3 | . . . . . . . 3 . . Destroy 1 | . . . . . . . 1 . . Blast 2 | . . . . . . . 2 . . Melee Attacks 5 | . . . . . . . 5 . . Impact . | . . . . . . . . . . Slashing 5 | . . . . . . . 5 . . Piercing . | . . . . . . . . . . Sneak Attacks . | . . . . . . . . . . Combat Hostiles . | . . . . . . . . . . Follow-up Attacks . | . . . . . . . . . . Damage Inflicted 6605 | . 143 212 . . 381 1229 3502 786 352 Guns 3582 | . 143 108 . . 197 240 2634 199 61 Cannons 1975 | . . 104 . . 184 721 666 161 139 Explosions 878 | . . . . . . 268 32 426 152 Melee 170 | . . . . . . . 170 . . Ramming . | . . . . . . . . . . Kinetic 3721 | . 80 212 . . 381 721 1920 357 50 Thermal 1585 | . 63 . . . . 508 905 . 109 Explosive 578 | . . . . . . . . 426 152 Electromagnetic 551 | . . . . . . . 507 3 41 Impact . | . . . . . . . . . . Slashing 170 | . . . . . . . 170 . . Piercing . | . . . . . . . . . . Highest Corruption 10 | . . 1 1 1 1 . 6 9 10 Average Corruption 4 | . . 1 1 1 1 . 2 7 9 Corruption Purged 5 | . . . . . . . 5 . . Corruption Blocked . | . . . . . . . . . . Effects 100 | . . 2 2 2 7 . 25 7 55 Message Errors 20 | . . . . 1 2 . 5 1 11 Matter Fused 23 | . . . 1 1 1 . 5 2 13 Heat Flow Errors 12 | . . 1 1 . . . 2 1 7 Energy Discharges 11 | . . . . . . . 3 1 7 Parts Rejected 1 | . . . . . . . . 1 . Parts Fused 2 | . . . . . 1 . . . 1 Data Loss (minor) 12 | . . 1 . . 1 . 3 . 7 Data Loss (major) 7 | . . . . . . . 2 . 5 Misfires 6 | . . . . . 2 . 1 . 3 Alerts 4 | . . . . . . . 2 1 1 Weapon Failures 2 | . . . . . . . 2 . . Overload Shots . | . . . . . . . . . . Overflow Damage 59 | . . . . . . 50 9 . . Projectiles 9 | . . . . . . . 9 . . Explosions 50 | . . . . . . 50 . . . Melee . | . . . . . . . . . . Knockbacks 22 | . . . . . 6 14 2 . . Impact . | . . . . . . . . . . Kinetic 20 | . . . . . 5 13 2 . . Secondary 2 | . . . . . 1 1 . . . Self-Inflicted Damage 96 | . . . . . . 72 . . 24 Shots 2 | . . . . . . 1 . . 1 Rammed . | . . . . . . . . . . Targets Rammed . | . . . . . . . . . . Kicked . | . . . . . . . . . . Crushed . | . . . . . . . . . . Highest Temperature 761 | . 62 159 92 . 177 761 690 252 258 Average Temperature 192 | . 23 42 49 . 74 370 218 120 103 Received Heat Transfer 1863 | . . 27 36 . 90 450 1254 . 6 Effects 79 | . . . . . . 33 44 . 2 Shutdowns 19 | . . . . . . 10 9 . . Energy Bleed 6 | . . . . . . 3 2 . 1 Interference 15 | . . . . . . 5 9 . 1 Matter Decay 7 | . . . . . . 4 3 . . Short Circuit 10 | . . . . . . 5 5 . . Damage (minor) 2 | . . . . . . . 2 . . Damage (major) 15 | . . . . . . 4 11 . . Damage (core) 5 | . . . . . . 2 3 . . Siege Activations . | . . . . . . . . . . Robots Corrupted . | . . . . . . . . . . Combat Hostiles . | . . . . . . . . . . Parts Fried . | . . . . . . . . . . Impact Corruptions . | . . . . . . . . . . Robots Melted . | . . . . . . . . . . Combat Hostiles . | . . . . . . . . . . Parts Melted 7 | . . . . . . . 7 . . Heat Transferred 3106 | . 185 . . . . 644 2116 . 161 Parts Sabotaged . | . . . . . . . . . . Parts Stolen . | . . . . . . . . . . Parts Stripped . | . . . . . . . . . . Power Chain Reactions 1 | . . . . . . . 1 . . Alert | -11 -10 -9 -9 -9 -8 -8 -7 -7 -7 ------- Run | Yrd Mat Mat Min Exi Min Mat Fac Was Fac Peak Influence 278 | . 138 101 27 . 115 278 229 41 134 Initial 41 | . . 41 27 . . . 9 26 9 Average 40 | . 54 63 27 . 28 31 70 22 19 Maximum Alert Level 1 | . . . . . . 1 1 . . Low Security (%) 99 | 100 100 100 100 . 100 96 99 100 100 Level 1 . | . . . . . . 3 . . . Level 2 . | . . . . . . . . . . Level 3 . | . . . . . . . . . . Level 4 . | . . . . . . . . . . Level 5 . | . . . . . . . . . . High Security . | . . . . . . . . . . Max Security . | . . . . . . . . . . Squads Dispatched 12 | . . . . . . 1 7 . 4 Investigation . | . . . . . . . . . . Extermination 5 | . . . . . . . 3 . 2 Reinforcement 5 | . . . . . . . 3 . 2 Assault . | . . . . . . . . . . Garrison 2 | . . . . . . 1 1 . . Intercept . | . . . . . . . . . . Searches Triggered . | . . . . . . . . . . Construction Impeded . | . . . . . . . . . . Haulers Reinforced 2 | . . . . . . . 2 . . Active Scanning Responses . | . . . . . . . . . . Cargo Convoy Interrupts . | . . . . . . . . . . Stealth | -11 -10 -9 -9 -9 -8 -8 -7 -7 -7 --------- Run | Yrd Mat Mat Min Exi Min Mat Fac Was Fac Distress Signals 5 | . . 1 . . . 2 2 . . Communications Jammed . | . . . . . . . . . . Distress Signals . | . . . . . . . . . . Times Spotted 86 | . 6 3 2 . 4 17 40 7 7 Peak Tracking Total 6 | . 2 1 2 . 2 6 5 6 2 Tactical Retreats 3 | . . . . . . 1 . 2 . Traps | -11 -10 -9 -9 -9 -8 -8 -7 -7 -7 ------- Run | Yrd Mat Mat Min Exi Min Mat Fac Was Fac Traps Triggered 5 | . . 2 . . . . 2 . 1 Indirectly . | . . . . . . . . . . Trap Hack Attempts . | . . . . . . . . . . Triggered . | . . . . . . . . . . Disarmed . | . . . . . . . . . . Reprogrammed . | . . . . . . . . . . Reused . | . . . . . . . . . . Traps Extracted . | . . . . . . . . . . Installed . | . . . . . . . . . . Triggered . | . . . . . . . . . . Machines | -11 -10 -9 -9 -9 -8 -8 -7 -7 -7 ---------- Run | Yrd Mat Mat Min Exi Min Mat Fac Was Fac Machines Disabled 6 | . . . . . . 3 3 . . Max in Single Turn 3 | . . . . . . 3 1 . . Machines Repaired . | . . . . . . . . . . Machines Dismantled . | . . . . . . . . . . Machines Sabotaged . | . . . . . . . . . . Overloaded Fab Kills . | . . . . . . . . . . Hacking | -11 -10 -9 -9 -9 -8 -8 -7 -7 -7 --------- Run | Yrd Mat Mat Min Exi Min Mat Fac Was Fac Machines Accessed 3 | . 2 . . 1 . . . . . Terminals 1 | . 1 . . . . . . . . Fabricators . | . . . . . . . . . . Repair Stations . | . . . . . . . . . . Recycling Units 1 | . 1 . . . . . . . . Scanalyzers . | . . . . . . . . . . Garrison Access . | . . . . . . . . . . Total Hacks 29 | . 6 . . 23 . . . . . Successful 29 | . 6 . . 23 . . . . . Failed . | . . . . . . . . . . Catastrophic . | . . . . . . . . . . Database Lockouts . | . . . . . . . . . . Manual . | . . . . . . . . . . Terminals 3 | . 3 . . . . . . . . Fabricators . | . . . . . . . . . . Repair Stations . | . . . . . . . . . . Recycling Units 3 | . 3 . . . . . . . . Scanalyzers . | . . . . . . . . . . Garrison Access . | . . . . . . . . . . Terminal Hacks 26 | . 3 . . 23 . . . . . Record 26 | . 3 . . 23 . . . . . Fabricator Hacks . | . . . . . . . . . . Repair Station Hacks . | . . . . . . . . . . Recycling Unit Hacks 3 | . 3 . . . . . . . . Process 1 | . 1 . . . . . . . . Report Inventory 1 | . 1 . . . . . . . . Retrieve Matter 1 | . 1 . . . . . . . . Scanalyzer . | . . . . . . . . . . Garrison Access Hacks . | . . . . . . . . . . Unauthorized Hacks . | . . . . . . . . . . Terminals . | . . . . . . . . . . Fabricators . | . . . . . . . . . . Repair Stations . | . . . . . . . . . . Recycling Units . | . . . . . . . . . . Scanalyzers . | . . . . . . . . . . Garrison Access . | . . . . . . . . . . Data Cores Recovered . | . . . . . . . . . . Used . | . . . . . . . . . . Hacking Detections 1 | . 1 . . . . . . . . Full Trace Events . | . . . . . . . . . . Feedback Events . | . . . . . . . . . . Feedback Blocked . | . . . . . . . . . . Robot Schematics Acquired . | . . . . . . . . . . Robots Built . | . . . . . . . . . . Authchips . | . . . . . . . . . . Time . | . . . . . . . . . . Total Robot Build Rating . | . . . . . . . . . . Part Schematics Acquired . | . . . . . . . . . . Parts Built . | . . . . . . . . . . Authchips . | . . . . . . . . . . Time . | . . . . . . . . . . Total Part Build Rating . | . . . . . . . . . . Parts Repaired . | . . . . . . . . . . Time . | . . . . . . . . . . Parts Recycled . | . . . . . . . . . . Recycled Matter 2 | . 2 . . . . . . . . Retrieved Matter 2 | . 2 . . . . . . . . Retrieved Components . | . . . . . . . . . . Parts Scanalyzed . | . . . . . . . . . . Part Schematics Acquired . | . . . . . . . . . . Parts Damaged . | . . . . . . . . . . Bothacking | -11 -10 -9 -9 -9 -8 -8 -7 -7 -7 ------------ Run | Yrd Mat Mat Min Exi Min Mat Fac Was Fac Used RIF Installer . | . . . . . . . . . . Robots Hacked 1 | . . . . . . . 1 . . Non-combat . | . . . . . . . . . . Combat 1 | . . . . . . . 1 . . Robot Hacks Applied 2 | . . . . . . . 2 . . parse_system 2 | . . . . . . . 2 . . Relay Couplers Released 4 | . . . . . . . 4 . . Programmers 4 | . . . . . . . 4 . . Fabnet Peak Effective % . | . . . . . . . . . . Robots Rewired . | . . . . . . . . . . Allies Hacked . | . . . . . . . . . . Hacks Repelled . | . . . . . . . . . . Allies | -11 -10 -9 -9 -9 -8 -8 -7 -7 -7 -------- Run | Yrd Mat Mat Min Exi Min Mat Fac Was Fac Total Allies . | . . . . . . . . . . Largest Group . | . . . . . . . . . . Highest-Rated Group . | . . . . . . . . . . Highest-Rated Ally . | . . . . . . . . . . Total Orders . | . . . . . . . . . . Ally Attacks . | . . . . . . . . . . Total Damage . | . . . . . . . . . . Kills . | . . . . . . . . . . Allies Corrupted . | . . . . . . . . . . Allies Melted . | . . . . . . . . . . Intel | -11 -10 -9 -9 -9 -8 -8 -7 -7 -7 ------- Run | Yrd Mat Mat Min Exi Min Mat Fac Was Fac Robot Analysis Total . | . . . . . . . . . . Derelict Logs Recovered . | . . . . . . . . . . Drone Launches . | . . . . . . . . . . Drone Recoveries . | . . . . . . . . . . Exploration | -11 -10 -9 -9 -9 -8 -8 -7 -7 -7 ------------- Run | Yrd Mat Mat Min Exi Min Mat Fac Was Fac Turns Passed 6481 | 89 276 242 137 339 986 632 1840 204 1736 Spaces Moved 3198 | 48 130 114 67 179 469 215 913 302 761 Core 350 | 11 . . . . . 38 3 287 11 Treads 431 | . . . . . . 117 314 . . Legs 2417 | 37 130 114 67 179 469 60 596 15 750 Wheels . | . . . . . . . . . . Hover . | . . . . . . . . . . Flight . | . . . . . . . . . . Fastest Speed 50 | 50 190 120 190 190 190 160 100 50 50 Average Speed 172 | 149 190 188 190 190 190 246 141 56 215 Slowest Speed 600 | 190 190 190 190 190 190 600 240 190 220 Overloaded Moves . | . . . . . . . . . . Propulsion Burnouts . | . . . . . . . . . . Robots Hopped . | . . . . . . . . . . Cave-ins Triggered . | . . . . . . . . . . Exploration Rate (%) 38 | 5 34 12 23 56 91 22 22 100 21 Regions Visited 9 Branch Regions 3 Pre-discovered Areas 1 | . . . . 1 . . . . . Known Exits Taken 7 | 1 1 1 1 1 1 1 . . . Unknown Exits Taken . | . . . . . . . . . . Scrap Searched 1 | . . . . . 1 . . . . Spaces Dug . | . . . . . . . . . . Terrain Destroyed 68 | . . . . . . 18 7 19 24 Melee . | . . . . . . . . . . Projectile 3 | . . . . . . . 2 . 1 AOE 65 | . . . . . . 18 5 19 23 Terrain Rammed . | . . . . . . . . . . Walls Destroyed . | . . . . . . . . . . Machines Disabled . | . . . . . . . . . . Actions | -11 -10 -9 -9 -9 -8 -8 -7 -7 -7 --------- Run | Yrd Mat Mat Min Exi Min Mat Fac Was Fac Total 3895 | 66 144 127 77 178 542 288 1309 316 848 Wait 333 | 4 1 . 11 . 59 36 184 2 36 Move 3190 | 47 129 113 66 178 468 214 913 301 761 Hop . | . . . . . . . . . . Pick Up 90 | 8 3 4 . . 3 8 43 1 20 Fast Attach 14 | . . . . . . . 4 3 7 Attach 57 | 7 2 2 . . 1 3 34 1 7 Detach . | . . . . . . . . . . Swap 29 | . 1 2 . . . 5 16 . 5 Drop 41 | . 1 . . . 1 6 25 . 8 Fire 136 | . 7 6 . . 10 16 85 8 4 Melee 5 | . . . . . . . 5 . . Ram . | . . . . . . . . . . Kick . | . . . . . . . . . . Crush . | . . . . . . . . . . Escape Stasis . | . . . . . . . . . . Rewire . | . . . . . . . . . . Trap . | . . . . . . . . . . Miscellaneous . | . . . . . . . . . . Route ------- -11/Scrapyard -10/Materials -9/Materials -9/Mines -9/Exiles -8/Mines -8/Materials -7/Factory -7/Waste -7/Factory History --------- Turn | Location | Event 46 | -11/Scrapyard | Identified exit to Materials 46 | -11/Scrapyard | Discovered exit to Materials (range 15) 90 | -11/Scrapyard | Entered Materials 90 | -10/Materials | Evolved 1 slot: Weapon x1 296 | -10/Materials | Identified exit to Materials 296 | -10/Materials | Discovered exit to Materials (range 12) 366 | -10/Materials | Entered another Materials area 366 | -9/Materials | Evolved 2 slots: Power x1, Utility x1 406 | -9/Materials | Build established: Hacker-Gunner 500 | -9/Materials | Identified exit to Mines 500 | -9/Materials | Discovered exit to Mines (range 16) 592 | -9/Materials | Met 8R-AWN 608 | -9/Materials | Entered Mines 609 | -9/Mines | Followed 8R-AWN into the Mines 737 | -9/Mines | Identified exit to Exiles 737 | -9/Mines | Discovered exit to Exiles (range 5) 745 | -9/Mines | Entered Exiles 799 | -9/Exiles | Welcomed by 8R-AWN 829 | -9/Exiles | Met EX-HEX 962 | -9/Exiles | Met EX-DEC 1010 | -9/Exiles | Learned location of Zion (-7) 1063 | -9/Exiles | Identified exit to Mines 1063 | -9/Exiles | Discovered exit to Mines (range 14) 1084 | -9/Exiles | Entered Mines 2054 | -8/Mines | Identified exit to Materials 2054 | -8/Mines | Discovered exit to Materials (range 5) 2070 | -8/Mines | Entered Materials 2070 | -8/Materials | Evolved 2 slots: Utility x1, Weapon x1 2408 | -8/Materials | Identified exit to Factory 2408 | -8/Materials | Discovered exit to Factory (range 3) 2411 | -8/Materials | Garrison activated, responded to threat 2479 | -8/Materials | Destroyed 9 combat bots 2702 | -8/Materials | Entered Factory 2702 | -7/Factory | Evolved 2 slots: Propulsion x1, Utility x1 3007 | -7/Factory | Build established: Hacker-Tank 3119 | -7/Factory | Garrison activated, responded to threat 3216 | -7/Factory | Lost 5 parts (1p4w) 3533 | -7/Factory | Core integrity fell below 50% 3584 | -7/Factory | Lost 10 parts (2p3n2u3w) 4336 | -7/Factory | Build established: Hacker-Gunner 4542 | -7/Factory | Sucked down chute 4542 | -7/Factory | Entered Waste 4557 | -7/Waste | EMP discharged 4558 | -7/Waste | Spotted C-40 Crusher 4560 | -7/Waste | Spotted C-40 Crusher 4572 | -7/Waste | Spotted C-40 Crusher 4581 | -7/Waste | Crushed by Compactor (1 part destroyed, 1 dropped) 4584 | -7/Waste | Crushed by Compactor (1 part destroyed, 1 dropped) 4587 | -7/Waste | Crushed by Compactor (1 part destroyed, 2 dropped) 4589 | -7/Waste | Crushed by Compactor (1 part destroyed, 2 dropped) 4590 | -7/Waste | Crushed by Compactor (1 part destroyed, 1 dropped) 4590 | -7/Waste | Crushed by Compactor (1 part destroyed, 2 dropped) 4591 | -7/Waste | Core integrity fell below 20% 4595 | -7/Waste | Spotted C-40 Crusher 4595 | -7/Waste | Spotted C-40 Crusher 4621 | -7/Waste | Lost 6 parts (2p2n2w) 4657 | -7/Waste | EMP discharged 4677 | -7/Waste | Crushed by Compactor (1 part destroyed) 4708 | -7/Waste | Spotted C-40 Crusher 4739 | -7/Waste | Identified exit to Factory 4739 | -7/Waste | Discovered exit to Factory (range 10) 4746 | -7/Waste | Entered Factory 5045 | -7/Factory | Build established: Hacker-Tank 5841 | -7/Factory | Build established: Hacker-Gunner 5979 | -7/Factory | System corruption reached 10% 6482 | -7/Factory | Destroyed by Y-54 Guardian with Gatling Laser Last Messages --------------- Plating. 06380_ U-05 Engineer lays Concrete. 06399_ System corrupted: Matter fused (-9). 06400_ The unstable cave ceiling collapses. 06414_ ALERT: Rogue bot located, Programmers report to Factory Zone 3G. 06417_ System corrupted: Matter fused (-9). 06423_ U-05 Engineer lays Concrete. 06428_ U-05 Engineer builds a Wall. 06432_ U-05 Engineer lays Concrete. 06434_ U-05 Engineer builds a Wall. 06440_ U-05 Engineer lays Concrete. 06441_ U-05 Engineer builds a Wall. 06442_ System corrupted: FCS attempts to trigger Hvy. Ion Cannon. 06442_ System corrupted: Hvy. Ion Cannon misfires. 06461_ System corrupted: Heat flow error (+207). 06481_ System corrupted: Substantial component data lost. Map ----- +----------------------------------------------------+ | ????????????????????????????? | | ????????????????????????????? | | ????????????????????????????? | | ????????????????????????????? | | ????????????????????????????? | | ????????????????????????????? | | ????????????????????????????? | | ????????????????????????????? | | ????????????????????????????? | | ????????????????????????????? | | ????????????????????????????? | | ????????????????????????????? | | ????????????????????????????? | | ????????????????????????????? | | ????????????????????????????? | | ????????????????????????????? | | ????????????????????????????? | | ????????????????????????????? | | ????????????????#???????????? | | ??????????????? ##??????????? | | ?#######????? ??????????? | | ?# ##### ?????????? | | ?# "" ?????????? | | ?# T" u Y ??????????? | | ?# ???????????????? | | ?# @ #????????????????????? | | ??# ##????????????????????? | | ??# #?????????????????????? | | ??# #?????????????????????? | | ??# #?????????????????????? | | ??# #?????????????????????? | | ??# #?????????????????????? | | ??# #?????????????????????? | | ??# #?????????????????????? | | ??# #?????????????????????? | | ?## ##??????########??????? | | ?# #??????# T /#??????? | | ?# ]#??????# #??????? | | ?# #??????#""" ! #??????? | | ?# [ #??????#""" #??????? | | ?# #??????#""" ! #??????? | | ?### ###??????# #??????? | | ???# #?###########+#########? | | ???# ############ # """ #? | | ???# + ""R" #? | | ???# ###### # "" " #? | | ???# T#???##+## #? | | ???# "" #??? #! ! #? | | ???# """ ##?"T" # =#? | | ???# T" ## """ [ ########? | +----------------------------------------------------+ Best States ------------- Heat Dissipation 76 Coolant Potential 65 Energy Generation 25 Energy Capacity 500 Matter Stores 300 Matter Capacity 300 Sight Range 16 Terrain Scan Density 10 ECM Strength 1 Additional Mass Support 9 Armor Coverage 225 Resistance: KI 65 Resistance: TH 35 Resistance: EX 35 Resistance: EM 35 Resistance: I 35 Resistance: S 35 Resistance: P 35 Propulsion Shielding 33 Weapon Cycling 15 Evasion (%) 55 Targeting Accuracy 8 Recoil Reduction 3 Matter Filtering 30 Energy Filtering 30 Offensive Hacking 20 Item Schematics ----------------- None Robot Schematics ------------------ None Fabricated ------------ Nothing Alien Tech Used ----------------- None Achievements -------------- Librarian Maybe Next Time I'll Detach My Launcher Challenges ------------ None Game ------ Seed LargeWaveLance Manual? 0 Play Time 01:10:24 Cumulative 17.0 hours Start 2024.08.07 @ 16:33:54 End 2024.08.07 @ 21:51:28 Sessions 3 Manual Loads 0 Difficulty Explorer Special Mode None Game No. 24 Rogue 1 Adventurer 9 Explorer 14 Win Type - Total 0 Types 0/0/0/0/0/0/0/0/0 Lore% 5 Gallery% 26 Achievement% 21 Wizard Run 0 Options --------- Layout 2 ASCII 0 Keyboard 0 Movement Mouse Keybinds 0 Fullscreen 2 Font 24/CogTall Map View 50x44 Zoom Use 0% Tactical HUD 1 Map Filters NONE Filters NONE Steam 1 RUN: f2afaaf8-2a7a-4a58-9348-dc005a2ddff8